bitfinex-derivatives/quotes_BTCF0:USTF0_20250805
["timestamp","ask_amount","ask_price","bid_price","bid_amount"]
[1754395294327,0.6984,114870.0,114860.0,0.68422]
[1754395295124,0.6984,114870.0,114860.0,0.8583564]
[1754395295329,0.6984,114870.0,114860.0,0.63701]
[1754395295524,0.6984,114870.0,114860.0,0.68616]
[1754395296030,0.6984,114870.0,114860.0,0.8602964]
[1754395296333,0.2937364,114860.0,114850.0,0.71995638]
[1754395296534,0.2937364,114860.0,114850.0,1.31759638]
[1754395296724,0.6986951,114860.0,114850.0,1.31759638]
[1754395297824,0.6986951,114860.0,114850.0,1.31859638]
[1754395298634,0.6986951,114860.0,114850.0,1.2664212]
[1754395298826,0.6986951,114860.0,114850.0,1.0922787]
[1754395299130,0.6986951,114860.0,114850.0,1.0932787]
[1754395299535,0.6986951,114860.0,114850.0,0.68832]
[1754395300633,0.6986951,114860.0,114850.0,0.8624716]
[1754395302431,0.6986951,114860.0,114850.0,1.2674303]
[1754395303926,0.2937364,114860.0,114850.0,1.2674303]
[1754395304128,0.6986951,114860.0,114850.0,1.2674303]
[1754395306530,0.6986951,114860.0,114850.0,0.66196]
[1754395306729,0.6986951,114860.0,114850.0,0.6159]
[1754395308434,0.6986951,114860.0,114850.0,0.66505]
[1754395308629,0.6986951,114860.0,114850.0,0.68832]
[1754395308830,0.2937364,114860.0,114850.0,0.68832]
[1754395309030,0.1838664,114860.0,114850.0,0.68832]
[1754395309228,0.6986951,114860.0,114850.0,0.68832]
[1754395314240,0.6986951,114860.0,114850.0,0.63917]
[1754395314438,0.6986951,114860.0,114850.0,0.68832]
[1754395315536,0.2937364,114860.0,114850.0,0.68832]
[1754395315838,0.6986951,114860.0,114850.0,0.68832]
[1754395319336,0.6986951,114860.0,114850.0,0.6159]
[1754395319541,0.6986951,114860.0,114850.0,0.66505]
[1754395319741,0.6986951,114860.0,114850.0,0.68832]
[1754395320341,0.2937364,114860.0,114850.0,0.6159]
[1754395320533,0.6986951,114860.0,114850.0,0.66505]
[1754395320938,0.6986951,114860.0,114850.0,0.68832]
[1754395321439,0.2937364,114860.0,114850.0,0.68832]
[1754395321743,0.6986951,114860.0,114850.0,0.68832]
[1754395325138,0.2210664,114860.0,114850.0,0.68832]
[1754395325341,0.6955251,114860.0,114850.0,0.68832]
[1754395327247,0.2905664,114860.0,114850.0,0.68832]
[1754395327439,0.6955251,114860.0,114850.0,0.68832]
[1754395328152,0.6955251,114860.0,114850.0,0.59964]
[1754395328844,0.6955251,114860.0,114850.0,0.0422]
[1754395329148,0.6955251,114860.0,114850.0,0.08957]
[1754395329952,0.6955251,114860.0,114850.0,0.08857]
[1754395330147,0.6955251,114860.0,114850.0,0.06756]
[1754395330347,0.6955251,114860.0,114850.0,0.06656]
[1754395331653,0.6955251,114860.0,114850.0,0.0402]
[1754395331853,0.2905809,114850.0,114840.0,0.68513]
[1754395332054,0.6955396,114850.0,114840.0,0.68513]
[1754395334656,0.65121615,114850.0,114840.0,0.68513]
[1754395336051,0.65121615,114850.0,114840.0,0.61363]
[1754395336356,0.65121615,114850.0,114840.0,0.66412]
[1754395336658,0.65121615,114850.0,114840.0,0.68513]
[1754395339752,0.65121615,114850.0,114840.0,0.08757]
[1754395339946,0.65121615,114850.0,114840.0,0.68513]
[1754395349457,0.2905809,114850.0,114840.0,0.8592961]
[1754395349662,0.65121615,114850.0,114840.0,0.8592961]
[1754395349857,0.2905809,114850.0,114840.0,0.8592961]
[1754395350054,0.2905809,114850.0,114840.0,0.68513]
[1754395352363,0.1839009,114850.0,114840.0,0.8592962]
[1754395354363,0.1741509,114850.0,114840.0,1.21993145]
[1754395356770,0.1741509,114850.0,114840.0,1.26491]
[1754395357270,0.1741509,114850.0,114840.0,0.8592962]
[1754395357470,0.6966947,114850.0,114840.0,1.0907438]
[1754395358174,0.6966947,114850.0,114840.0,0.68513]
[1754395358372,0.6966947,114850.0,114840.0,1.0907438]
[1754395358973,0.6966947,114850.0,114840.0,0.68513]
[1754395362786,0.65171947,114850.0,114840.0,0.68513]
[1754395367190,0.1969509,114850.0,114840.0,0.8592961]
[1754395367489,0.1832309,114850.0,114840.0,0.8592961]
[1754395368886,0.1741509,114850.0,114840.0,0.8592961]
[1754395369190,0.2756109,114850.0,114840.0,0.8592961]
[1754395369389,0.2910809,114850.0,114840.0,0.8592961]
[1754395370890,0.1969509,114850.0,114840.0,0.8592961]
[1754395371484,0.1832309,114850.0,114840.0,0.8592961]
[1754395372091,0.1969509,114850.0,114840.0,0.8592961]
[1754395374484,0.2674509,114850.0,114840.0,0.8592961]
[1754395374786,0.2910809,114850.0,114840.0,0.8592961]
[1754395376694,0.2910809,114850.0,114840.0,0.68513]
[1754395377896,0.65171947,114850.0,114840.0,0.68513]
[1754395378890,0.65171947,114850.0,114840.0,0.8592959]
[1754395379094,0.2910809,114850.0,114840.0,0.8592959]
[1754395380696,0.1741509,114850.0,114840.0,0.8592959]
[1754395380895,0.1741509,114850.0,114840.0,1.21993447]
[1754395383598,0.1741509,114850.0,114840.0,0.8592959]
[1754395384001,0.1741509,114850.0,114840.0,1.21993447]
[1754395384504,0.1741509,114850.0,114840.0,0.8592959]
[1754395384704,0.1741509,114850.0,114840.0,1.21993447]
[1754395385905,0.1741509,114850.0,114840.0,0.8592959]
[1754395386103,0.1741509,114850.0,114840.0,1.21993447]
[1754395392111,0.1306086,114860.0,114850.0,0.2621708]
[1754395392112,0.3047565,114860.0,114850.0,0.2621708]
[1754395392708,0.3047565,114860.0,114850.0,0.66770489]
[1754395393212,0.3192065,114860.0,114850.0,0.66770489]
[1754395393613,0.3289765,114860.0,114850.0,0.66770489]
[1754395394603,0.3289765,114860.0,114850.0,0.62263987]
[1754395396718,0.3617465,114860.0,114850.0,0.62263987]
[1754395398419,0.4070065,114860.0,114850.0,0.62263987]
[1754395399415,0.4231965,114860.0,114850.0,0.62263987]
[1754395406517,0.4231965,114860.0,114850.0,0.2621708]
[1754395406718,0.4231965,114860.0,114850.0,0.62263987]
[1754395416628,0.4231965,114860.0,114850.0,0.66770385]
[1754395417134,0.4231965,114860.0,114850.0,0.2621708]
[1754395417334,0.4231965,114860.0,114850.0,0.66770385]
[1754395421133,0.3289765,114860.0,114850.0,0.66770385]
[1754395421334,0.3626565,114860.0,114850.0,0.66770385]
[1754395421537,0.4236765,114860.0,114850.0,0.66770385]
[1754395423440,0.4236765,114860.0,114850.0,0.2621708]
[1754395423639,0.4236765,114860.0,114850.0,0.66770385]
[1754395424536,0.82920955,114860.0,114850.0,0.66770395]
[1754395424933,0.4236765,114860.0,114850.0,0.66770395]
[1754395426933,0.3144165,114860.0,114850.0,0.66770395]
[1754395428638,0.3144165,114860.0,114850.0,0.2621709]
[1754395428838,0.3144165,114860.0,114850.0,0.66770395]
[1754395429039,0.3286765,114860.0,114850.0,0.66770395]
[1754395429742,0.3626565,114860.0,114850.0,0.66770395]
[1754395430442,0.3626565,114860.0,114850.0,0.5269709]
[1754395430644,0.4074165,114860.0,114850.0,0.93250395]
[1754395431947,0.4074165,114860.0,114850.0,0.5269709]
[1754395432147,0.4074165,114860.0,114850.0,0.93250395]
[1754395432541,0.4236765,114860.0,114850.0,0.93250395]
[1754395440350,0.82920955,114860.0,114850.0,1.52982395]
[1754395440553,0.82920955,114860.0,114850.0,1.50835395]
[1754395441356,0.4236765,114860.0,114850.0,1.50835395]
[1754395442356,0.4236765,114860.0,114850.0,1.24355395]
[1754395444465,0.4236765,114860.0,114850.0,1.06940305]
[1754395444666,0.82920955,114860.0,114850.0,1.06940305]
[1754395445164,0.82920955,114860.0,114850.0,1.24355395]
[1754395445463,0.82920955,114860.0,114850.0,0.8606809]
[1754395445661,0.82920955,114860.0,114850.0,1.26621395]
[1754395449368,0.82920955,114860.0,114850.0,1.09206305]
[1754395449670,0.82920955,114860.0,114850.0,1.26621395]
[1754395450069,0.82920955,114860.0,114850.0,0.8606809]
[1754395450371,0.82920955,114860.0,114850.0,1.26621395]
[1754395451269,0.4236765,114860.0,114850.0,0.8606809]
[1754395451469,0.82920955,114860.0,114850.0,1.26621395]
[1754395451769,0.4236765,114860.0,114850.0,1.26621395]
[1754395452571,0.4236765,114860.0,114850.0,0.8606809]
[1754395452772,0.4236765,114860.0,114850.0,1.26617395]
[1754395453273,0.4236765,114860.0,114850.0,0.8606409]
[1754395453473,0.4236765,114860.0,114850.0,1.26617395]
[1754395456275,0.4236765,114860.0,114850.0,0.8606409]
[1754395456476,0.4236765,114860.0,114850.0,1.26617395]
[1754395457177,0.82920955,114860.0,114850.0,1.26617395]
[1754395460082,0.4236765,114860.0,114850.0,1.26617395]
[1754395465687,0.4236765,114860.0,114850.0,0.8606409]
[1754395465884,0.4236765,114860.0,114850.0,1.26617395]
[1754395467587,0.3284065,114860.0,114850.0,1.26617395]
[1754395468190,0.4062565,114860.0,114850.0,1.26617395]
[1754395469082,0.4219465,114860.0,114850.0,1.26617395]
[1754395469382,0.3657665,114860.0,114850.0,1.26617395]
[1754395469581,0.4219465,114860.0,114850.0,1.26617395]
[1754395473591,0.4219465,114860.0,114850.0,0.8606409]
[1754395473790,0.4219465,114860.0,114850.0,1.26617395]
[1754395474690,0.4219465,114860.0,114850.0,0.8606409]
[1754395474892,0.4219465,114860.0,114850.0,1.26617395]
[1754395475594,0.82747955,114860.0,114850.0,0.08921]
[1754395475789,0.82747955,114860.0,114850.0,1.06566305]
[1754395475986,0.82747955,114860.0,114850.0,1.09202305]
[1754395476187,0.82747955,114860.0,114850.0,0.68649]
[1754395476388,0.82747955,114860.0,114850.0,1.09202305]
[1754395476692,0.82747955,114860.0,114850.0,0.68649]
[1754395476890,0.82747955,114860.0,114850.0,1.09202305]
[1754395478092,0.4219465,114860.0,114850.0,1.26617395]
[1754395478291,0.82747955,114860.0,114850.0,1.26617395]
[1754395479794,0.4219465,114860.0,114850.0,0.8606409]
[1754395480087,0.82747955,114860.0,114850.0,1.26617395]
[1754395481794,0.4219465,114860.0,114850.0,1.26617395]
[1754395482190,0.3047565,114860.0,114850.0,1.26617395]
[1754395483087,0.3528365,114860.0,114850.0,1.26617395]
[1754395483392,0.4243765,114860.0,114850.0,1.26617395]
[1754395483889,0.4243765,114860.0,114850.0,0.8606409]
[1754395484095,0.4243765,114860.0,114850.0,1.26617395]
[1754395485195,0.3138665,114860.0,114850.0,1.26617395]
[1754395486295,0.3278865,114860.0,114850.0,1.26617395]
[1754395486697,0.4078865,114860.0,114850.0,1.26617395]
[1754395487698,0.3830665,114860.0,114850.0,1.26617395]
[1754395488302,0.3278865,114860.0,114850.0,1.26617395]
[1754395489401,0.3047565,114860.0,114850.0,1.26617395]
[1754395490099,0.2612193,114860.0,114850.0,1.26617395]
[1754395494615,0.2562193,114860.0,114850.0,1.26617395]
[1754395495008,0.2176843,114860.0,114850.0,1.26617395]
[1754395495211,0.2612215,114860.0,114850.0,1.26617395]
[1754395496213,0.2572215,114860.0,114850.0,1.26617395]
[1754395497105,0.2562215,114860.0,114850.0,0.8606409]
[1754395497304,0.2562215,114860.0,114850.0,1.26617395]
[1754395497712,0.1741479,114860.0,114850.0,1.26617395]
[1754395497926,0.2833265,114870.0,114860.0,0.2623157]
[1754395498220,0.2833265,114870.0,114860.0,0.66784875]
[1754395498427,0.2257731,114870.0,114860.0,0.66784875]
[1754395498624,0.1877931,114870.0,114860.0,0.66784875]
[1754395498825,0.2640265,114870.0,114860.0,0.66784875]
[1754395499331,0.3113265,114870.0,114860.0,0.66784875]
[1754395500132,0.3278165,114870.0,114860.0,0.67653289]
[1754395500326,0.2478165,114870.0,114860.0,0.67653289]
[1754395500529,0.2081965,114870.0,114860.0,0.67653289]
[1754395500726,0.2313265,114870.0,114860.0,0.67653289]
[1754395502433,0.2840222,114890.0,114880.0,0.2612056]
[1754395502634,0.2840222,114890.0,114880.0,1.26389865]
[1754395502635,0.3782422,114890.0,114880.0,1.26389865]
[1754395502830,0.2791963,114890.0,114880.0,1.26389865]
[1754395503036,0.2625463,114890.0,114880.0,1.26389865]
[1754395503440,0.2268163,114890.0,114880.0,1.26389865]
[1754395503639,0.2278163,114890.0,114880.0,1.26389865]
[1754395504131,0.1842913,114890.0,114880.0,1.26389865]
[1754395504636,0.1842913,114890.0,114880.0,1.21856082]
[1754395505227,0.1979713,114890.0,114880.0,1.21856082]
[1754395510243,0.2691613,114890.0,114880.0,1.21856082]
[1754395510545,0.2921913,114890.0,114880.0,1.21856082]
[1754395514745,0.2921913,114890.0,114880.0,0.62140082]
[1754395514946,0.2921913,114890.0,114880.0,1.21844082]
[1754395515847,0.2921913,114890.0,114880.0,1.21840082]
[1754395520653,0.2921913,114890.0,114880.0,0.8582056]
[1754395520847,0.2921913,114890.0,114880.0,1.21840082]
[1754395524858,0.2921913,114890.0,114880.0,0.8582056]
[1754395525058,0.2921913,114890.0,114880.0,1.21840082]
[1754395526559,0.2911913,114890.0,114880.0,1.21840082]
[1754395526756,0.2911913,114890.0,114880.0,1.26348611]
[1754395530464,0.2911913,114890.0,114880.0,0.8582056]
[1754395530665,0.2911913,114890.0,114880.0,1.26348611]
[1754395531462,0.2911913,114890.0,114880.0,0.8582056]
[1754395531762,0.2911913,114890.0,114880.0,1.26348611]
[1754395539563,0.1969713,114890.0,114880.0,0.66648611]
[1754395539766,0.2911913,114890.0,114880.0,1.26336611]
[1754395550079,0.2674413,114890.0,114880.0,1.26336611]
[1754395551280,0.1741013,114890.0,114880.0,1.26336611]
[1754395551471,0.1971813,114890.0,114880.0,1.26336611]
[1754395551667,0.2520613,114890.0,114880.0,1.26336611]
[1754395551876,0.2758113,114890.0,114880.0,1.26336611]
[1754395552378,0.2911613,114890.0,114880.0,1.26336611]
[1754395553581,0.2192513,114890.0,114880.0,1.26336611]
[1754395553880,0.2702917,114900.0,114890.0,0.2615106]
[1754395554176,0.2267698,114900.0,114890.0,1.07207162]
[1754395554379,0.2267698,114900.0,114890.0,0.66679111]
[1754395554580,0.2176098,114900.0,114890.0,0.66679111]
[1754395555083,0.2176098,114900.0,114890.0,1.07207162]
[1754395555469,0.2176098,114900.0,114890.0,1.08938665]
[1754395556182,0.2176098,114900.0,114890.0,1.157999]
[1754395556975,0.001,114900.0,114890.0,1.157999]
[1754395557683,0.001,114900.0,114890.0,1.422799]
[1754395558387,0.1750752,114900.0,114890.0,1.422799]
[1754395560982,0.1420752,114900.0,114890.0,0.61223798]
[1754395561286,0.1420752,114900.0,114890.0,1.422799]
[1754395561481,0.2702615,114910.0,114900.0,0.2614954]
[1754395561685,0.2606998,114910.0,114900.0,1.66869642]
[1754395562287,0.2939398,114910.0,114900.0,1.66869642]
[1754395562486,0.3410998,114910.0,114900.0,1.66869642]
[1754395563286,0.3417529,114920.0,114910.0,0.1958202]
[1754395563481,0.2562429,114920.0,114910.0,0.68457964]
[1754395563682,0.3680707,114920.0,114910.0,0.68457964]
[1754395564084,0.3680707,114920.0,114910.0,0.6932821]
[1754395564987,0.1015077,114930.0,114910.0,1.09856261]
[1754395565190,0.3142619,114930.0,114920.0,1.65243602]
[1754395565591,0.3287519,114930.0,114920.0,1.24715551]
[1754395565794,0.3142619,114930.0,114920.0,1.24715551]
[1754395566093,0.3287519,114930.0,114920.0,1.24715551]
[1754395567093,0.2707512,114930.0,114920.0,1.65243602]
[1754395567793,0.2272413,114930.0,114920.0,1.65243602]
[1754395568190,0.3561987,114940.0,114930.0,0.2123]
[1754395568497,0.3809987,114940.0,114930.0,0.27922376]
[1754395568793,0.3809987,114940.0,114930.0,1.08978478]
[1754395569493,0.3809987,114940.0,114930.0,0.68450427]
[1754395570095,0.3809987,114940.0,114930.0,1.08978478]
[1754395570293,0.3084687,114940.0,114930.0,1.08978478]
[1754395570493,0.3809987,114940.0,114930.0,1.08978478]
[1754395570793,0.3809987,114940.0,114930.0,0.6391558]
[1754395572293,0.2707287,114940.0,114930.0,0.6391558]
[1754395572592,0.2852187,114940.0,114930.0,0.6391558]
[1754395573289,0.2610156,114950.0,114930.0,0.4651258]
[1754395573488,0.2610156,114950.0,114940.0,1.20177674]
[1754395573489,0.3809756,114950.0,114940.0,1.20177674]
[1754395580896,0.3809756,114950.0,114940.0,0.8583547]
[1754395581098,0.3809756,114950.0,114940.0,1.21828674]
[1754395581700,0.3809756,114950.0,114940.0,1.04427204]
[1754395582702,0.3809756,114950.0,114940.0,1.21828674]
[1754395583500,0.3809756,114950.0,114940.0,1.04427204]
[1754395583694,0.3809756,114950.0,114940.0,0.68434]
[1754395583895,0.3809756,114950.0,114940.0,1.04427204]
[1754395584501,0.3809756,114950.0,114940.0,1.21804674]
[1754395589112,0.3809756,114950.0,114940.0,1.04403204]
[1754395589414,0.3809756,114950.0,114940.0,1.21804664]
[1754395589615,0.3809756,114950.0,114940.0,1.04403204]
[1754395589913,0.3809756,114950.0,114940.0,1.21804664]
[1754395590614,0.3809756,114950.0,114940.0,1.26302306]
[1754395594217,0.3809756,114950.0,114940.0,1.08900846]
[1754395594519,0.3809756,114950.0,114940.0,1.26302306]
[1754395597412,0.3809756,114950.0,114940.0,0.8581146]
[1754395597612,0.3809756,114950.0,114940.0,1.26302306]
[1754395599017,0.3809756,114950.0,114940.0,0.8581146]
[1754395599316,0.3809756,114950.0,114940.0,1.26302306]
[1754395602918,0.3809756,114950.0,114940.0,0.8581146]
[1754395603118,0.3809756,114950.0,114940.0,1.26302306]
[1754395606221,0.3809756,114950.0,114940.0,0.66662306]
[1754395606417,0.78449406,114950.0,114940.0,0.61287]
[1754395606613,0.78449406,114950.0,114940.0,0.01651]
[1754395606921,0.78449406,114950.0,114930.0,0.94942192]
[1754395606922,0.2929746,114940.0,114930.0,0.94942192]
[1754395607116,0.69788306,114940.0,114930.0,1.37175222]
[1754395607918,0.2545997,114930.0,114920.0,1.60858846]
[1754395608119,0.69789816,114930.0,114920.0,1.20368]
[1754395608623,0.69789816,114930.0,114920.0,1.80004]
[1754395609416,0.69789816,114930.0,114920.0,1.82471]
[1754395609616,0.69789816,114930.0,114920.0,1.85107]
[1754395610326,0.70662674,114930.0,114920.0,1.85107]
[1754395610719,0.66185488,114930.0,114920.0,1.85107]
[1754395610920,0.30171828,114930.0,114920.0,1.85107]
[1754395612628,0.66185488,114930.0,114920.0,1.85107]
[1754395613231,0.66185488,114930.0,114920.0,1.20368]
[1754395613431,0.66185488,114930.0,114920.0,1.80008]
[1754395614132,0.66185488,114930.0,114920.0,0.5964]
[1754395614333,0.2208548,114920.0,114910.0,0.08819]
[1754395614638,0.2930048,114920.0,114910.0,0.68459]
[1754395617735,0.6531414,114920.0,114910.0,0.08819]
[1754395618034,0.6531414,114920.0,114910.0,0.68463]
[1754395619436,0.2930048,114920.0,114910.0,0.68463]
[1754395619637,0.6531414,114920.0,114910.0,0.68463]
[1754395624344,0.2933,114910.0,114900.0,0.08999]
[1754395624545,0.2933,114910.0,114900.0,0.68739]
[1754395630441,0.6534366,114910.0,114900.0,0.06363]
[1754395630641,0.2197603,114890.0,114880.0,1.23204]
[1754395630840,0.69874693,114890.0,114880.0,2.23529663]
[1754395631447,0.69874693,114890.0,114880.0,1.82988]
[1754395631650,0.69874693,114890.0,114880.0,2.23629663]
[1754395631852,0.2933303,114890.0,114880.0,2.41040223]
[1754395632052,0.69874693,114890.0,114880.0,2.41040223]
[1754395632654,0.2933303,114890.0,114880.0,2.0049856]
[1754395633156,0.2933303,114890.0,114880.0,2.36530856]
[1754395633852,0.1740903,114890.0,114880.0,2.36530856]
[1754395634454,0.1966903,114890.0,114880.0,2.36530856]
[1754395634755,0.2197603,114890.0,114880.0,2.36530856]
[1754395636155,0.2197603,114890.0,114880.0,2.0049856]
[1754395636348,0.2420803,114890.0,114880.0,1.83088]
[1754395636555,0.65365326,114890.0,114880.0,1.83076]
[1754395636754,0.2933303,114890.0,114880.0,1.83076]
[1754395637050,0.65365326,114890.0,114880.0,1.83076]
[1754395637247,0.65365326,114890.0,114880.0,1.83104]
[1754395637449,0.65365326,114890.0,114880.0,0.61549]
[1754395637655,0.65365326,114890.0,114880.0,0.61936]
[1754395637953,0.65365326,114890.0,114880.0,0.65021]
[1754395638850,0.65365326,114890.0,114880.0,0.64921]
[1754395639658,0.2933303,114890.0,114880.0,0.64921]
[1754395642756,0.65365326,114890.0,114880.0,0.64921]
[1754395644056,0.65365326,114890.0,114880.0,0.01649]
[1754395644260,0.2933455,114880.0,114870.0,0.05121]
[1754395644556,0.66232884,114880.0,114870.0,0.65009]
[1754395644754,0.66232884,114880.0,114870.0,0.05121]
[1754395644958,0.66232884,114880.0,114870.0,0.65029]
[1754395645554,0.2933455,114880.0,114870.0,0.65029]
[1754395649161,0.65366846,114880.0,114870.0,0.65029]
[1754395649554,0.2933455,114880.0,114870.0,0.65029]
[1754395654069,0.65366846,114880.0,114870.0,0.65029]
[1754395654566,0.2933455,114880.0,114870.0,0.65029]
[1754395656160,0.1835155,114880.0,114870.0,0.65029]
[1754395656466,0.1835155,114880.0,114870.0,1.01137296]
[1754395656863,0.2538055,114880.0,114870.0,0.65105]
[1754395657058,0.2919455,114880.0,114870.0,0.65105]
[1754395657259,0.65226846,114880.0,114870.0,0.05121]
[1754395657561,0.2919455,114880.0,114870.0,0.65105]
[1754395658367,0.65226846,114880.0,114870.0,0.65105]
[1754395661368,0.2919455,114880.0,114870.0,0.65105]
[1754395662666,0.65226846,114880.0,114870.0,0.02656]
[1754395662856,0.65226846,114880.0,114870.0,0.60028]
[1754395663057,0.2920107,114870.0,114860.0,0.02654]
[1754395663262,0.65233366,114870.0,114860.0,0.6269]
[1754395664167,0.65233366,114870.0,114860.0,0.65185]
[1754395666262,0.65233366,114870.0,114860.0,0.6207]
[1754395666466,0.65233366,114870.0,114860.0,0.60036]
[1754395667767,0.2441009,114850.0,114840.0,1.81076206]
[1754395667962,0.2762909,114850.0,114840.0,2.41096206]
[1754395668268,0.1836109,114850.0,114840.0,2.05940679]
[1754395668571,0.1836109,114850.0,114840.0,2.41972975]
[1754395668958,0.1836109,114850.0,114840.0,2.42172975]
[1754395669171,0.1836109,114850.0,114840.0,2.42272975]
[1754395669368,0.1836109,114850.0,114840.0,1.82256975]
[1754395669575,0.1452809,114850.0,114840.0,3.08293271]
[1754395669775,0.1385209,114850.0,114840.0,3.25707671]
[1754395670372,0.1385209,114850.0,114840.0,2.89675375]
[1754395670673,0.1385209,114850.0,114840.0,2.72260975]
[1754395671876,0.3047567,114860.0,114850.0,0.174151]
[1754395672068,0.3047567,114860.0,114850.0,0.53447396]
[1754395673567,0.217683,114860.0,114850.0,0.53447396]
[1754395673869,0.1741358,114860.0,114850.0,0.66507986]
[1754395674068,1.6741358,114860.0,114850.0,1.18275226]
[1754395674673,1.6741358,114860.0,114850.0,1.00861626]
[1754395675066,0.1741358,114860.0,114850.0,1.00861626]
[1754395677072,0.1741358,114860.0,114850.0,0.70861626]
[1754395677371,0.1972358,114860.0,114850.0,0.70861626]
[1754395678070,0.0741358,114860.0,114850.0,0.66507986]
[1754395678367,0.1066958,114860.0,114850.0,0.66507986]
[1754395678574,0.1696358,114860.0,114850.0,0.62154346]
[1754395678766,0.1696358,114860.0,114850.0,1.22198346]
[1754395678962,0.1374458,114860.0,114850.0,1.22198346]
[1754395679268,0.1920258,114860.0,114850.0,1.22198346]
[1754395679466,0.1920258,114860.0,114850.0,0.53447396]
[1754395679673,0.292041,114850.0,114840.0,1.78230389]
[1754395679969,0.292041,114850.0,114840.0,2.74306685]
[1754395680175,0.292041,114850.0,114840.0,2.8996923]
[1754395680474,0.174151,114850.0,114840.0,3.26001526]
[1754395680671,0.289229,114850.0,114840.0,2.8996923]
[1754395680872,0.289229,114850.0,114840.0,2.74406685]
[1754395681178,0.312329,114850.0,114840.0,2.74606685]
[1754395681473,0.407119,114850.0,114840.0,2.74606685]
[1754395681674,0.391369,114850.0,114840.0,2.9026923]
[1754395681870,0.321789,114850.0,114840.0,2.9026923]
[1754395682071,0.312329,114850.0,114840.0,2.9026923]
[1754395682573,0.289229,114850.0,114840.0,3.10638981]
[1754395682781,0.289229,114850.0,114840.0,3.40638981]
[1754395682977,0.289229,114850.0,114840.0,3.10638981]
[1754395683577,1.789229,114850.0,114840.0,3.10638981]
[1754395684171,1.789229,114850.0,114840.0,3.26301526]
[1754395685673,1.789229,114850.0,114840.0,2.54236934]
[1754395685875,1.813619,114850.0,114840.0,3.26301526]
[1754395686682,1.813619,114850.0,114840.0,3.10638981]
[1754395688183,1.859429,114850.0,114840.0,3.10638981]
[1754395688481,1.859429,114850.0,114840.0,2.74606685]
[1754395689581,1.859429,114850.0,114840.0,2.38574389]
[1754395689782,1.859429,114850.0,114840.0,2.74606685]
[1754395689981,1.813619,114850.0,114840.0,2.74606685]
[1754395690183,1.759429,114850.0,114840.0,2.74606685]
[1754395692087,1.759429,114850.0,114840.0,2.14562685]
[1754395692279,1.615078,114850.0,114840.0,3.10562981]
[1754395692585,1.515078,114850.0,114840.0,3.10562981]
[1754395692886,0.015078,114850.0,114840.0,3.10562981]
[1754395693184,0.1892289,114850.0,114840.0,3.10562981]
[1754395693777,0.2136189,114850.0,114840.0,3.26225526]
[1754395695683,0.039468,114850.0,114840.0,3.26225526]
[1754395695988,0.015078,114850.0,114840.0,3.26225526]
[1754395696187,0.015078,114850.0,114840.0,3.26232142]
[1754395697086,0.015078,114850.0,114840.0,3.10562981]
[1754395697288,0.039468,114850.0,114840.0,3.10562981]
[1754395698184,0.2136189,114850.0,114840.0,3.10562981]
[1754395698379,0.039468,114850.0,114840.0,3.10562981]
[1754395699285,0.015078,114850.0,114840.0,3.27977381]
[1754395699481,1.5,114860.0,114850.0,0.1741509]
[1754395699685,0.2661843,114880.0,114870.0,0.1741206]
[1754395699990,0.3225843,114880.0,114870.0,1.1516596]
[1754395700389,0.291998,114880.0,114870.0,1.1516596]
[1754395701086,0.259988,114880.0,114870.0,1.1516596]
[1754395701291,0.2081054,114880.0,114870.0,1.4164596]
[1754395701786,0.02439,114880.0,114870.0,1.4164596]
[1754395702091,0.02439,114880.0,114870.0,1.57319059]
[1754395702492,1.52439,114880.0,114870.0,1.57319059]
[1754395702694,1.639468,114880.0,114870.0,1.57319059]
[1754395702991,1.639468,114880.0,114870.0,1.4164596]
[1754395703194,1.615078,114880.0,114870.0,1.59056359]
[1754395703490,0.0893293,114900.0,114870.0,1.59056359]
[1754395703491,0.3354862,114900.0,114890.0,0.1740904]
[1754395703793,0.3354862,114900.0,114890.0,1.13473336]
[1754395704698,0.2919669,114900.0,114890.0,1.13473336]
[1754395705491,0.2919669,114900.0,114890.0,1.14332747]
[1754395706496,0.2919669,114900.0,114890.0,1.21265396]
[1754395706698,0.4070449,114900.0,114890.0,1.21265396]
[1754395719203,0.232958,114900.0,114890.0,1.21265396]
[1754395720800,0.4070332,114900.0,114890.0,1.21265396]
[1754395723402,0.4070332,114900.0,114890.0,0.252011]
[1754395723602,0.4070332,114900.0,114890.0,0.851291]
[1754395724704,0.4070332,114900.0,114890.0,1.21161396]
[1754395727600,0.3612232,114900.0,114890.0,1.21161396]
[1754395727804,0.115078,114900.0,114890.0,1.21161396]
[1754395728004,0.115078,114900.0,114890.0,1.47641396]
[1754395728200,0.115078,114900.0,114890.0,2.68025396]
[1754395730615,0.108078,114900.0,114890.0,2.68025396]
[1754395731820,0.2577452,114920.0,114910.0,0.17406]
[1754395732118,0.043508,114930.0,114920.0,0.2133449]
[1754395732119,0.3150224,114930.0,114920.0,0.2133449]
[1754395732319,0.3585327,114930.0,114920.0,0.57366786]
[1754395732524,0.3565327,114930.0,114920.0,0.57686786]
[1754395732712,0.3565327,114930.0,114920.0,0.57886786]
[1754395734320,0.3791927,114930.0,114920.0,0.2185449]
[1754395734521,0.3791927,114930.0,114920.0,0.57886786]
[1754395735022,0.4942707,114930.0,114920.0,0.55620786]
[1754395736119,0.4942707,114930.0,114920.0,0.57886786]
[1754395740825,0.4942707,114930.0,114920.0,0.0445]
[1754395741019,0.4942707,114930.0,114920.0,0.38216296]
[1754395742423,0.4942707,114930.0,114920.0,0.55620796]
[1754395742826,0.259915,114920.0,114910.0,0.5477463]
[1754395743026,0.292065,114920.0,114910.0,1.50794926]
[1754395743215,0.223095,114920.0,114910.0,1.50794926]
[1754395743419,0.243455,114920.0,114910.0,1.53060926]
[1754395743722,0.292065,114920.0,114910.0,1.53060926]
[1754395744025,0.259915,114920.0,114910.0,1.53060926]
[1754395744325,0.246195,114920.0,114910.0,1.53060926]
[1754395744525,0.292065,114920.0,114910.0,1.53060926]
[1754395745226,0.407143,114920.0,114910.0,1.53060926]
[1754395745427,0.374993,114920.0,114910.0,1.53060926]
[1754395745728,0.321713,114920.0,114910.0,1.53060926]
[1754395746026,1.821713,114920.0,114910.0,1.53060926]
[1754395746426,1.835433,114920.0,114910.0,1.53060926]
[1754395746627,1.835433,114920.0,114910.0,1.53048926]
[1754395747125,1.867583,114920.0,114910.0,1.26568926]
[1754395749124,1.811943,114920.0,114910.0,1.26568926]
[1754395749324,1.789123,114920.0,114910.0,1.26568926]
[1754395749730,1.826333,114920.0,114910.0,1.26568926]
[1754395750029,1.858483,114920.0,114910.0,1.26568926]
[1754395751225,1.684438,114920.0,114910.0,1.26568926]
[1754395751429,1.615078,114920.0,114910.0,1.26568926]
[1754395752029,0.115078,114920.0,114910.0,1.89081222]
[1754395754428,0.115078,114920.0,114910.0,1.53048926]
[1754395754628,0.115078,114920.0,114910.0,1.26568926]
[1754395755631,0.407143,114920.0,114910.0,0.64326926]